fUSD/lending_fUSD_20241221
["ID","MTS","AMOUNT","RATE_DAILY","PERIOD"]
[346142038,1734743433962,-500.0,0.00022999,4]
[346142039,1734743433972,-500.0,0.00022999,4]
[346142040,1734743433982,-500.0,0.00022999,4]
[346142041,1734743433991,-500.76492736,0.00022999,4]
[346142042,1734743434001,-500.0,0.00022999,4]
[346142043,1734743434011,-500.0,0.00022999,4]
[346142044,1734743434022,-500.0,0.00022999,4]
[346142045,1734743434032,-500.0,0.00022999,4]
[346142046,1734743434042,-500.0,0.00022999,4]
[346142047,1734743434051,-500.0,0.00022999,4]
[346142048,1734743434061,-501.28718546,0.00022999,4]
[346142049,1734743434071,-500.0,0.00022999,4]
[346142050,1734743434081,-500.0,0.00022999,4]
[346142051,1734743434090,-501.2297248,0.00022999,4]
[346142052,1734743434101,-500.0,0.00022999,4]
[346142053,1734743434111,-500.0,0.00022999,4]
[346142054,1734743434121,-500.0,0.00022999,4]
[346142055,1734743434131,-500.0,0.00022999,4]
[346142056,1734743434141,-500.0,0.00022999,4]
[346142057,1734743434151,-500.0,0.00022999,4]
[346142058,1734743434160,-579.59,0.00022999,4]
[346142059,1734743434170,-500.0,0.00022999,4]
[346142060,1734743434179,-500.0,0.00022999,4]
[346142061,1734743434189,-549.27,0.00022999,4]
[346142062,1734743434198,-500.0,0.00022999,4]
[346142063,1734743434208,-500.0,0.00022999,4]
[346142064,1734743434217,-500.0,0.00022999,4]
[346142065,1734743434226,-601.48,0.00022999,4]
[346142066,1734743434236,-500.0,0.00022999,4]
[346142067,1734743434245,-500.0,0.00022999,4]
[346142068,1734743434254,-500.0,0.00022999,4]
[346142069,1734743434264,-500.0,0.00022999,4]
[346142070,1734743434274,-500.0,0.00022999,4]
[346142071,1734743434284,-500.0,0.00022999,4]
[346142072,1734743434293,-500.40568986,0.00022999,4]
[346142073,1734743434302,-500.0,0.00022999,4]
[346142074,1734743434313,-500.0,0.00022999,4]
[346142075,1734743434322,-500.0,0.00022999,4]
[346142076,1734743434514,-500.0,0.00022999,4]
[346142077,1734743434529,-500.0,0.00022999,4]
[346142078,1734743434539,-531.74,0.00022999,4]
[346142079,1734743434549,-500.0,0.00022999,4]
[346142080,1734743434558,-500.0,0.00022999,4]
[346142081,1734743434568,-500.0,0.00022999,4]
[346142082,1734743434578,-500.0,0.00022999,4]
[346142083,1734743434588,-500.0,0.00022999,4]
[346142084,1734743434597,-500.0,0.00022999,4]
[346142085,1734743434606,-393.04894075,0.00022999,4]
[346142086,1734743434616,-500.0,0.00022999,4]
[346142087,1734743434626,-500.0,0.00022999,4]
[346142088,1734743434635,-500.0,0.00022999,4]
[346142089,1734743434646,-500.0,0.00022999,4]
[346142090,1734743434655,-500.0,0.00022999,4]
[346142091,1734743434664,-451.68538157,0.00022999,4]
[346142092,1734743434674,-500.0,0.00022999,4]
[346142093,1734743434684,-500.0,0.00022999,4]
[346142094,1734743434694,-500.0,0.00022999,4]
[346142095,1734743434704,-500.0,0.00022999,4]
[346142096,1734743434715,-500.0,0.00022999,4]
[346142097,1734743434726,-500.0,0.00022999,4]
[346142098,1734743434736,-516.84,0.00022999,4]
[346142099,1734743434746,-500.0,0.00022999,4]
[346142100,1734743434756,-500.0,0.00022999,4]
[346142101,1734743434767,-7972.4626,0.00022999,2]
[346142102,1734743434780,-500.0,0.00022999,4]
[346142103,1734743434790,-500.0,0.00022999,4]
[346142104,1734743434799,-318.30043986,0.00022999,4]
[346142105,1734743434809,-500.0,0.00022999,4]
[346142106,1734743434818,-500.0,0.00022999,4]
[346142107,1734743434827,-500.0,0.00022999,4]
[346142108,1734743434837,-475.36325108,0.00022999,4]
[346142109,1734743434846,-528.31624917,0.00022999,4]
[346142110,1734743434856,-500.0,0.00022999,4]
[346142111,1734743434866,-500.0,0.00022999,4]
[346142112,1734743434875,-624.16,0.00022999,4]
[346142113,1734743434885,-500.0,0.00022999,4]
[346142114,1734743434894,-500.0,0.00022999,4]
[346142115,1734743434903,-500.0,0.00022999,4]
[346142116,1734743434912,-500.0,0.00022999,4]
[346142117,1734743434922,-543.44,0.00022999,4]
[346142118,1734743434932,-500.0,0.00022999,4]
[346142119,1734743434941,-500.80614188,0.00022999,4]
[346142120,1734743434951,-531.26,0.00022999,4]
[346142121,1734743434961,-500.0,0.00022999,4]
[346142122,1734743434970,-616.62,0.00022999,4]
[346142123,1734743434979,-500.0,0.00022999,4]
[346142124,1734743434989,-500.0,0.00022999,4]
[346142125,1734743434998,-500.0,0.00022999,4]
[346142126,1734743435008,-243.66882422,0.00022999,4]
[346142127,1734743435019,-545.35,0.00022999,4]
[346142128,1734743435028,-500.0,0.00022999,4]
[346142129,1734743435039,-411.02820799,0.00022999,4]
[346142130,1734743435049,-500.0,0.00022999,4]
[346142131,1734743435059,-500.0,0.00022999,4]
[346142132,1734743435069,-500.0,0.00022999,4]
[346142133,1734743435078,-500.0,0.00022999,4]
[346142134,1734743435088,-500.0,0.00022999,4]
[346142135,1734743435098,-500.0,0.00022999,4]
[346142136,1734743435108,-500.0,0.00022999,4]
[346142137,1734743435119,-500.0,0.00022999,4]
[346142138,1734743435130,-565.19915661,0.00022999,4]
[346142139,1734743435139,-500.0,0.00022999,4]
[346142140,1734743435149,-500.0,0.00022999,4]
[346142141,1734743435158,-500.0,0.00022999,4]
[346142142,1734743435168,-500.0,0.00022999,4]
[346142143,1734743435177,-167.357652,0.00022999,4]
[346142144,1734743435186,-500.0,0.00022999,4]
[346142145,1734743435196,-500.0,0.00022999,4]
[346142146,1734743435206,-500.0,0.00022999,4]
[346142147,1734743435216,-500.0,0.00022999,4]
[346142148,1734743435225,-500.0,0.00022999,4]
[346142149,1734743435235,-500.0,0.00022999,4]
[346142150,1734743435244,-500.0,0.00022999,4]
[346142151,1734743435253,-500.0,0.00022999,4]
[346142152,1734743435263,-500.0,0.00022999,4]
[346142153,1734743435275,-500.69564562,0.00022999,4]
[346142154,1734743435284,-500.0,0.00022999,4]
[346142155,1734743435294,-500.0,0.00022999,4]
[346142156,1734743435303,-500.0,0.00022999,4]
[346142157,1734743435313,-164.683369,0.00022999,4]
[346142158,1734743435322,-153.021989,0.00022999,4]
[346142159,1734743435332,-500.0,0.00022999,4]
[346142160,1734743435341,-500.0,0.00022999,4]
[346142161,1734743435350,-500.0,0.00022999,4]
[346142162,1734743435360,-500.0,0.00022999,4]
[346142163,1734743435370,-500.0,0.00022999,4]
[346142164,1734743435380,-500.0,0.00022999,4]
[346142165,1734743435389,-500.0,0.00022999,4]
[346142166,1734743435399,-500.0,0.00022999,4]
[346142167,1734743435409,-500.0,0.00022999,4]
[346142168,1734743435418,-500.0,0.00022999,4]
[346142169,1734743435428,-500.0,0.00022999,4]
[346142170,1734743435438,-500.0,0.00022999,4]
[346142171,1734743435447,-500.0,0.00022999,4]
[346142172,1734743435456,-558.06469887,0.00022999,4]
[346142173,1734743435466,-500.0,0.00022999,4]
[346142174,1734743435475,-500.0,0.00022999,4]
[346142175,1734743435485,-500.0,0.00022999,4]
[346142176,1734743435495,-500.0,0.00022999,4]
[346142177,1734743435505,-500.0,0.00022999,4]
[346142178,1734743435514,-500.0,0.00022999,4]
[346142179,1734743435525,-500.0,0.00022999,4]
[346142180,1734743435535,-500.0,0.00022999,4]
[346142181,1734743435545,-500.0,0.00022999,4]
[346142182,1734743435555,-500.0,0.00022999,4]
[346142183,1734743435565,-500.0,0.00022999,4]
[346142184,1734743435574,-500.46588232,0.00022999,4]
[346142185,1734743435583,-500.0,0.00022999,4]
[346142186,1734743435593,-500.0,0.00022999,4]
[346142187,1734743435603,-500.0,0.00022999,4]
[346142188,1734743435613,-500.0,0.00022999,4]
[346142189,1734743435622,-500.0,0.00022999,4]
[346142190,1734743435632,-500.0,0.00022999,4]
[346142191,1734743435641,-500.0,0.00022999,4]
[346142192,1734743435650,-500.0,0.00022999,4]
[346142193,1734743435660,-500.0,0.00022999,4]
[346142194,1734743435670,-500.0,0.00022999,4]
[346142195,1734743435680,-373.54640801,0.00022999,4]
[346142196,1734743435689,-500.0,0.00022999,4]
[346142197,1734743435699,-500.0,0.00022999,4]
[346142198,1734743435710,-500.0,0.00022999,4]
[346142199,1734743435721,-500.0,0.00022999,4]
[346142200,1734743435730,-500.0,0.00022999,4]
[346142201,1734743435739,-502.40834536,0.00022999,4]
[346142202,1734743435749,-500.0,0.00022999,4]
[346142203,1734743435759,-500.0,0.00022999,4]
[346142204,1734743435769,-455.82927554,0.00022999,4]
[346142205,1734743435778,-500.0,0.00022999,4]
[346142206,1734743435789,-500.0,0.00022999,4]
[346142207,1734743435799,-500.0,0.00022999,4]
[346142208,1734743435810,-500.0,0.00022999,4]
[346142209,1734743435819,-500.0,0.00022999,4]
[346142210,1734743435828,-500.0,0.00022999,4]
[346142211,1734743435839,-500.0,0.00022999,4]
[346142212,1734743435849,-500.0,0.00022999,4]
[346142213,1734743435859,-500.0,0.00022999,4]
[346142214,1734743435869,-500.0,0.00022999,4]
[346142215,1734743435879,-500.0,0.00022999,4]
[346142216,1734743435890,-500.0,0.00022999,4]
[346142217,1734743435901,-500.0,0.00022999,4]
[346142218,1734743435911,-500.0,0.00022999,4]
[346142219,1734743435920,-500.0,0.00022999,4]
[346142220,1734743435930,-500.0,0.00022999,4]
[346142221,1734743435940,-500.0,0.00022999,4]
[346142222,1734743435950,-200.65315497,0.00022999,4]
[346142223,1734743435960,-500.0,0.00022999,4]
[346142224,1734743435970,-559.67917772,0.00022999,4]
[346142225,1734743435979,-500.0,0.00022999,4]
[346142226,1734743435989,-500.0,0.00022999,4]
[346142227,1734743435998,-500.0,0.00022999,4]
[346142228,1734743436008,-500.0,0.00022999,4]
[346142229,1734743436019,-500.0,0.00022999,4]
[346142230,1734743436029,-712.77,0.00022999,4]
[346142231,1734743436038,-500.0,0.00022999,4]
[346142232,1734743436048,-500.0,0.00022999,4]
[346142233,1734743436057,-500.0,0.00022999,4]
[346142234,1734743436067,-512.45978463,0.00022999,4]
[346142235,1734743436077,-500.0,0.00022999,4]
[346142236,1734743436086,-7500.0,0.00022999,2]
[346142237,1734743436095,-500.0,0.00022999,4]
[346142238,1734743436104,-500.0,0.00022999,4]
[346142239,1734743436113,-953.74,0.00022999,4]
[346142240,1734743436123,-953.74,0.00022999,4]
[346142241,1734743436133,-953.74,0.00022999,4]
[346142242,1734743436142,-500.0,0.00022999,4]
[346142243,1734743436151,-500.0,0.00022999,4]
[346142244,1734743436161,-500.0,0.00022999,4]
[346142245,1734743436170,-851.02,0.00022999,4]
[346142246,1734743436179,-500.0,0.00022999,4]
[346142247,1734743436188,-500.0,0.00022999,4]
[346142248,1734743436198,-500.0,0.00022999,4]
[346142249,1734743436207,-500.0,0.00022999,4]
[346142250,1734743436216,-500.0,0.00022999,4]
[346142251,1734743436226,-500.0,0.00022999,4]
[346142252,1734743436235,-544.72,0.00022999,4]
[346142253,1734743436246,-500.0,0.00022999,4]
[346142254,1734743436255,-500.0,0.00022999,4]
[346142255,1734743436264,-501.70764162,0.00022999,4]
[346142256,1734743436276,-548.1,0.00022999,4]
[346142257,1734743436285,-500.0,0.00022999,4]
[346142258,1734743436294,-506.84974074,0.00022999,4]
[346142259,1734743436304,-590.43,0.00022999,4]
[346142260,1734743436314,-500.0,0.00022999,4]
[346142261,1734743436325,-501.07336828,0.00022999,4]
[346142262,1734743436334,-528.48,0.00022999,4]
[346142263,1734743436344,-790.46,0.00022999,4]
[346142264,1734743436353,-500.0,0.00022999,4]
[346142265,1734743436364,-500.0,0.00022999,4]
[346142266,1734743436375,-500.0,0.00022999,4]
[346142267,1734743436384,-500.0,0.00022999,4]
[346142268,1734743436396,-809.2,0.00022999,4]
[346142269,1734743436405,-290.69901231,0.00022999,4]
[346142270,1734743436414,-500.0,0.00022999,4]
[346142271,1734743436424,-500.0,0.00022999,4]
[346142272,1734743436433,-500.0,0.00022999,4]
[346142273,1734743436442,-500.0,0.00022999,4]
[346142274,1734743436452,-500.0,0.00022999,4]
[346142275,1734743436461,-449.7227198,0.00022999,4]
[346142276,1734743436470,-500.0,0.00022999,4]
[346142277,1734743436479,-608.21702564,0.00022999,4]
[346142278,1734743436488,-1082.18,0.00022999,4]
[346142279,1734743436497,-500.0,0.00022999,4]
[346142280,1734743436506,-500.0,0.00022999,4]
[346142281,1734743436515,-500.0,0.00022999,4]
[346142282,1734743436527,-500.0,0.00022999,4]
[346142283,1734743436536,-500.0,0.00022999,4]
[346142284,1734743436546,-500.0,0.00022999,4]
[346142285,1734743436555,-500.0,0.00022999,4]
[346142286,1734743436565,-328.73151908,0.00022999,4]
[346142287,1734743436574,-500.0,0.00022999,4]
[346142288,1734743436584,-500.0,0.00022999,4]
[346142289,1734743436593,-500.0,0.00022999,4]
[346142290,1734743436603,-500.0,0.00022999,4]
[346142291,1734743436613,-500.0,0.00022999,4]
[346142292,1734743436623,-500.0,0.00022999,4]
[346142293,1734743436633,-500.0,0.00022999,4]
[346142294,1734743436642,-500.0,0.00022999,4]
[346142295,1734743436652,-500.0,0.00022999,4]
[346142296,1734743436661,-884.59,0.00022999,4]
[346142297,1734743436670,-512.38,0.00022999,4]
[346142298,1734743436680,-500.0,0.00022999,4]
[346142299,1734743436689,-360.30607495,0.00022999,4]
[346142300,1734743436699,-500.0,0.00022999,4]
[346142301,1734743436710,-500.0,0.00022999,4]
[346142302,1734743436721,-333.0069221,0.00022999,4]
[346142303,1734743436730,-500.0,0.00022999,4]
[346142304,1734743436740,-500.0,0.00022999,4]
[346142305,1734743436750,-500.0,0.00022999,4]
[346142306,1734743436759,-960.23,0.00022999,4]
[346142307,1734743436769,-500.0,0.00022999,4]
[346142308,1734743436779,-314.38078532,0.00022999,4]
[346142309,1734743436788,-500.0,0.00022999,4]
[346142310,1734743436797,-22.02702895,0.00022999,4]
[346142311,1734743436817,-378.69818972,0.00022999,4]
[346142312,1734743436826,-440.09930089,0.00022999,4]
[346142313,1734743436837,-59.90069911,0.00022999,4]
[346142314,1734743436846,-500.0,0.00022999,4]
[346142315,1734743436855,-500.0,0.00022999,4]
[346142316,1734743436865,-500.0,0.00022999,4]
[346142317,1734743436874,-500.0,0.00022999,4]
[346142318,1734743436883,-545.96269456,0.00023,2]
[346142319,1734743436894,-2143.40822256,0.00023,2]
[346142320,1734743436906,-1046.43723188,0.00023,2]
[346142321,1734743436915,-136.27368525,0.00023,2]
[346142322,1734743436927,-891.00546868,0.00023,2]
[346142323,1734743436939,-531.65387139,0.00023,2]
[346142324,1734743436950,-1706.8058045,0.00023,2]
[346142325,1734743436965,-1204.50000005,0.00023,2]
[346142326,1734743436977,-362.97226087,0.00023,2]
[346142327,1734743436988,-2345.7000092,0.00023,2]
[346142328,1734743436999,-745.72050545,0.00023,2]
[346142329,1734743437010,-822.9,0.00023,2]
[346142330,1734743437024,-344.7799999,0.00023,2]
[346142331,1734743437039,-257.196,0.00023,2]
[346142332,1734743437051,-246833.45045555,0.00023,2]
[346142333,1734743438201,-769.22313,0.00022899,2]
[346142334,1734743438213,-58393.93097,0.00022899,2]
[346142335,1734743438222,-214670.34408596,0.00023,2]
[346142336,1734743438234,-30059.56939588,0.00023,2]
[346142337,1734743438269,-1313.73948058,0.00023,2]
[346142338,1734743438331,-986.58501,0.00023,2]
[346142339,1734743438450,-2151.0577244,0.00023,2]
[346142340,1734743438512,-113237.13109419,0.00023,2]
[346142341,1734743438525,-82142.30947511,0.00023,2]
[346142342,1734743438537,-9246.92064898,0.00023,2]
[346142343,1734743438637,-551.38502406,0.00023,2]
[346142344,1734743438646,-987.01,0.00023068,2]
[346142345,1734743438655,-1009.3,0.00023068,2]
[346142346,1734743438664,-1019.64,0.00023068,2]
[346142347,1734743438673,-383.66497595,0.00023068,2]
[346142363,1734743440396,-1635.63,0.00022999,4]
[346142364,1734743440406,-178.81,0.00022999,4]
[346142365,1734743440416,-635.00502405,0.00023068,2]
[346142366,1734743440425,-167.23,0.00023218,2]
[346142367,1734743440435,-500.0,0.00023272,4]
[346142368,1734743440445,-537.23,0.00023272,4]
[346142369,1734743440454,-330.86574144,0.00023272,4]
[346142370,1734743440464,-500.0,0.00023272,4]
[346142371,1734743440473,-500.0,0.00023272,4]
[346142372,1734743440483,-500.0,0.00023272,4]
[346142373,1734743440493,-500.0,0.00023272,2]
[346142374,1734743440502,-456.07477396,0.00023272,4]
[346142375,1734743440511,-519.37,0.00023272,4]
[346142376,1734743440523,-500.0,0.00023272,2]
[346142377,1734743440533,-293.08412438,0.00023272,4]
[346142378,1734743440542,-500.0,0.00023272,4]
[346142379,1734743440551,-500.0,0.00023272,4]
[346142380,1734743440561,-500.0,0.00023272,4]
[346142381,1734743440571,-360.9,0.00023272,4]
[346142382,1734743440580,-500.0,0.00023272,4]
[346142383,1734743440590,-574.75,0.00023272,4]
[346142384,1734743440599,-699.7,0.00023272,4]
[346142385,1734743440608,-227.8,0.00023272,4]
[346142386,1734743440618,-500.0,0.00023272,4]
[346142387,1734743440627,-765.41,0.00023272,4]
[346142388,1734743440636,-500.0,0.00023272,4]
[346142389,1734743440646,-1287.47,0.00023272,4]
[346142390,1734743440656,-500.0,0.00023272,4]
[346142391,1734743440665,-500.0,0.00023272,4]
[346142392,1734743440674,-500.0,0.00023272,4]
[346142393,1734743440684,-500.0,0.00023272,4]
[346142394,1734743440693,-500.0,0.00023272,4]
[346142395,1734743440703,-3364.65,0.00023272,4]
[346142396,1734743440713,-500.0,0.00023272,4]
[346142397,1734743440724,-500.0,0.00023272,4]
[346142398,1734743440734,-500.0,0.00023272,4]
[346142399,1734743440743,-500.0,0.00023272,4]
[346142400,1734743440752,-500.0,0.00023272,4]
[346142401,1734743440764,-500.0,0.00023272,4]
[346142402,1734743440775,-500.0,0.00023272,4]
[346142403,1734743440784,-500.0,0.00023272,4]
[346142404,1734743440795,-500.0,0.00023272,4]
[346142405,1734743440805,-555.91930723,0.00023273,2]
[346142406,1734743440815,-500.0,0.00023273,4]
[346142407,1734743440825,-638.69,0.00023273,4]
[346142408,1734743440834,-550.41,0.00023273,4]
[346142409,1734743440843,-334.9,0.00023273,4]
[346142410,1734743440853,-266.57,0.00023273,4]
[346142411,1734743440862,-536.07,0.00023273,4]
[346142412,1734743440871,-579.64,0.00023273,4]
[346142413,1734743440881,-547.56,0.00023273,4]
[346142414,1734743440891,-336.77,0.00023273,4]
[346142430,1734743441058,-500.0,0.00023273,4]
[346142432,1734743441069,-500.0,0.00023273,4]
[346142435,1734743441080,-430.92,0.00023273,4]
[346142437,1734743441090,-310.27,0.00023273,4]
[346142439,1734743441099,-500.0,0.00023273,4]
[346142441,1734743441109,-159.79,0.00023273,4]
[346142443,1734743441119,-246.58,0.00023273,4]
[346142444,1734743441129,-500.0,0.00023273,4]
[346142445,1734743441138,-500.0,0.00023273,4]
[346142446,1734743441148,-472.9,0.00023273,4]
[346142447,1734743441157,-500.0,0.00023273,4]
[346142448,1734743441167,-500.0,0.00023273,4]
[346142449,1734743441177,-577.24,0.00023273,4]
[346142450,1734743441186,-500.0,0.00023273,4]
[346142451,1734743441196,-500.0,0.00023273,4]
[346142452,1734743441206,-500.0,0.00023273,4]
[346142453,1734743441216,-502.93453105,0.00023273,4]
[346142454,1734743441227,-500.0,0.00023273,4]
[346142455,1734743441238,-500.0,0.00023273,4]
[346142456,1734743441247,-500.0,0.00023273,4]
[346142457,1734743441257,-164.0,0.00023273,4]
[346142458,1734743441266,-500.0,0.00023273,4]
[346142459,1734743441279,-500.0,0.00023273,4]
[346142460,1734743441289,-552.93581302,0.00023273,4]
[346142461,1734743441298,-296.448782,0.00023273,4]
[346142462,1734743441308,-500.0,0.00023273,4]
[346142463,1734743441317,-500.0,0.00023273,4]
[346142464,1734743441326,-500.0,0.00023273,4]
[346142465,1734743441335,-500.0,0.00023273,4]
[346142466,1734743441345,-500.0,0.00023273,4]
[346142467,1734743441354,-631.04,0.00023273,4]
[346142469,1734743441363,-500.0,0.00023273,4]
[346142471,1734743441372,-184.04453413,0.00023273,4]
[346142473,1734743441381,-500.0,0.00023273,4]
[346142475,1734743441391,-500.0,0.00023273,4]
[346142476,1734743441400,-500.0,0.00023273,4]
[346142478,1734743441409,-500.0,0.00023273,4]
[346142480,1734743441418,-500.0,0.00023273,4]
[346142482,1734743441427,-500.0,0.00023273,4]
[346142484,1734743441437,-500.0,0.00023273,4]
[346142486,1734743441446,-500.0,0.00023273,4]
[346142488,1734743441455,-500.0,0.00023273,4]
[346142490,1734743441465,-500.0,0.00023273,4]
[346142492,1734743441474,-293.97009308,0.00023273,4]
[346142494,1734743441483,-261.9954917,0.00023273,4]
[346142496,1734743441493,-500.0,0.00023273,4]
[346142498,1734743441503,-500.0,0.00023273,4]
[346142500,1734743441513,-500.0,0.00023273,4]
[346142501,1734743441524,-494.0,0.00023273,4]
[346142503,1734743441533,-500.0,0.00023273,4]
[346142505,1734743441543,-502.01774441,0.00023273,4]
[346142507,1734743441552,-500.0,0.00023273,4]
[346142509,1734743441562,-500.0,0.00023273,4]
[346142510,1734743441575,-500.0,0.00023273,4]
[346142511,1734743441585,-500.0,0.00023273,4]
[346142512,1734743441595,-556.5,0.00023273,4]
[346142513,1734743441605,-500.0,0.00023273,4]
[346142514,1734743441615,-500.0,0.00023273,4]
[346142515,1734743441624,-500.0,0.00023273,4]
[346142516,1734743441633,-500.0,0.00023273,4]
[346142517,1734743441643,-500.0,0.00023273,4]
[346142518,1734743441653,-500.0,0.00023273,4]
[346142519,1734743441662,-500.0,0.00023273,4]
[346142520,1734743441671,-500.0,0.00023273,4]
[346142521,1734743441681,-500.0,0.00023273,4]
[346142522,1734743441691,-500.0,0.00023273,4]
[346142523,1734743441701,-712.77,0.00023273,4]
[346142524,1734743441711,-500.0,0.00023273,4]
[346142525,1734743441721,-500.0,0.00023273,4]
[346142526,1734743441731,-500.0,0.00023273,4]
[346142527,1734743441740,-500.0,0.00023273,4]
[346142528,1734743441751,-500.0,0.00023273,4]
[346142529,1734743441761,-851.02,0.00023273,4]
[346142530,1734743441770,-500.0,0.00023273,4]
[346142531,1734743441781,-500.0,0.00023273,4]
[346142532,1734743441793,-330.86220086,0.00023273,4]
[346142533,1734743441803,-277.35,0.00023273,4]
[346142534,1734743441812,-500.0,0.00023273,4]
[346142535,1734743441822,-544.72,0.00023273,4]
[346142536,1734743441831,-204.1,0.00023273,4]
[346142537,1734743441841,-531.96,0.00023273,4]
[346142538,1734743441850,-548.1,0.00023273,4]
[346142539,1734743441860,-605.3,0.00023273,4]
[346142540,1734743441870,-590.43,0.00023273,4]
[346142541,1734743441879,-500.0,0.00023273,4]
[346142542,1734743441890,-790.46,0.00023273,4]
[346142543,1734743441900,-500.0,0.00023273,4]
[346142544,1734743441909,-809.2,0.00023273,4]
[346142545,1734743441919,-500.0,0.00023273,4]
[346142546,1734743441928,-500.0,0.00023273,4]
[346142547,1734743441938,-500.0,0.00023273,4]
[346142548,1734743441947,-187.71,0.00023273,4]
[346142549,1734743441957,-500.0,0.00023273,4]
[346142550,1734743441966,-1082.18,0.00023273,4]
[346142551,1734743441977,-266.91,0.00023273,4]
[346142552,1734743441989,-500.0,0.00023273,4]
[346142553,1734743441999,-500.0,0.00023273,4]
[346142554,1734743442008,-500.0,0.00023273,4]
[346142555,1734743442018,-500.0,0.00023273,4]
[346142556,1734743442030,-500.0,0.00023273,4]
[346142557,1734743442040,-500.0,0.00023273,4]
[346142558,1734743442049,-500.0,0.00023273,4]
[346142559,1734743442059,-227.76,0.00023273,4]
[346142560,1734743442069,-500.0,0.00023273,4]
[346142561,1734743442079,-500.0,0.00023273,4]
[346142562,1734743442088,-151.2,0.00023273,4]
[346142563,1734743442098,-884.59,0.00023273,4]
[346142564,1734743442107,-500.0,0.00023273,4]
[346142565,1734743442117,-500.0,0.00023273,4]
[346142566,1734743442126,-500.0,0.00023273,4]
[346142567,1734743442135,-500.0,0.00023273,4]
[346142568,1734743442145,-450.06,0.00023273,4]
[346142569,1734743442154,-960.23,0.00023273,4]
[346142570,1734743442164,-500.0,0.00023273,4]
[346142571,1734743442173,-500.0,0.00023273,4]
[346142572,1734743442183,-500.0,0.00023273,4]
[346142573,1734743442192,-1635.63,0.00023273,4]
[346142574,1734743442201,-3000.0,0.00023288,7]
[346142575,1734743442211,-435.94,0.0002337,2]
[346142576,1734743442220,-150.0,0.000234,4]
[346142577,1734743442230,-189.22321762,0.00023489,2]
[346142578,1734743442239,-189.22321762,0.00023489,2]
[346142579,1734743442249,-150000.0,0.000235,2]
[346142580,1734743442259,-241.8890587,0.0002352,2]
[346142581,1734743442269,-500.0,0.00023546,4]
[346142582,1734743442279,-500.0,0.00023546,2]
[346142583,1734743442289,-500.0,0.00023546,2]
[346142584,1734743442298,-572.09603016,0.00023546,4]
[346142585,1734743442308,-458.78,0.00023546,4]
[346142586,1734743442317,-500.0,0.00023546,4]
[346142587,1734743442327,-500.0,0.00023546,4]
[346142588,1734743442336,-574.75,0.00023546,4]
[346142589,1734743442346,-699.7,0.00023546,4]
[346142590,1734743442355,-500.0,0.00023546,4]
[346142591,1734743442364,-765.41,0.00023546,4]
[346142592,1734743442373,-500.0,0.00023546,4]
[346142593,1734743442383,-1287.47,0.00023546,4]
[346142594,1734743442392,-500.0,0.00023546,4]